[Event "Titled Tuesday Blitz November 22 Early 2022"]
[White "Vasques, Antonio Pedro Freixial"]
[Black "Malyi, Viacheslav"]
[WhiteFideId "1908332"]
[BlackFideId "14123983"]
[WhiteElo "2243"]
[BlackElo "2291"]
[Result "0-1"]
[Round "05"]
[TimeControl "180+1"]
[Date "2022.11.23"]
[WhiteClock "0:00:02"]
[BlackClock "0:00:42"]

1. e4 {[%clk 0:02:50]}  e5 {[%clk 0:02:59]} 2. Nf3 {[%clk 0:02:50]}  Nc6 {[%clk 0:03:00]} 3. Bc4 {[%clk 0:02:50]}  Bc5 {[%clk 0:02:59]} 4. O-O {[%clk 0:02:50]}  Nf6 {[%clk 0:02:59]} 5. d4 {[%clk 0:02:51]}  exd4 {[%clk 0:02:59]} 6. e5 {[%clk 0:02:52]}  d5 {[%clk 0:02:59]} 7. exf6 {[%clk 0:02:52]}  dxc4 {[%clk 0:03:00]} 8. Re1+ {[%clk 0:02:52]}  Be6 {[%clk 0:03:00]} 9. Ng5 {[%clk 0:02:53]}  Qd5 {[%clk 0:03:00]} 10. Nc3 {[%clk 0:02:54]}  Qf5 {[%clk 0:02:59]} 11. Nce4 {[%clk 0:02:54]}  Bb6 {[%clk 0:02:55]} 12. fxg7 {[%clk 0:02:25]}  Rg8 {[%clk 0:02:54]} 13. Ng3 {[%clk 0:02:25]}  Qg6 {[%clk 0:02:31]} 14. Nh5 {[%clk 0:01:24]}  O-O-O {[%clk 0:02:17]} 15. Nxe6 {[%clk 0:01:00]}  fxe6 {[%clk 0:02:16]} 16. Kh1 {[%clk 0:00:57]}  d3 {[%clk 0:02:15]} 17. cxd3 {[%clk 0:00:55]}  Bxf2 {[%clk 0:02:10]} 18. Rf1 {[%clk 0:00:54]}  Bb6 {[%clk 0:01:58]} 19. Bd2 {[%clk 0:00:43]}  cxd3 {[%clk 0:01:54]} 20. Bc3 {[%clk 0:00:41]}  e5 {[%clk 0:01:53]} 21. Qf3 {[%clk 0:00:35]}  e4 {[%clk 0:01:47]} 22. Qh3+ {[%clk 0:00:33]}  Kb8 {[%clk 0:01:46]} 23. Rf6 {[%clk 0:00:33]}  Qe8 {[%clk 0:01:38]} 24. Raf1 {[%clk 0:00:33]}  e3 {[%clk 0:01:23]} 25. Rf8 {[%clk 0:00:31]}  e2 {[%clk 0:01:19]} 26. Re1 {[%clk 0:00:14]}  Rxf8 {[%clk 0:01:17]} 27. gxf8=Q {[%clk 0:00:13]}  Qxf8 {[%clk 0:01:18]} 28. Nf6 {[%clk 0:00:13]}  a6 {[%clk 0:01:08]} 29. Qf5 {[%clk 0:00:04]}  Qe7 {[%clk 0:00:59]} 30. Nd5 {[%clk 0:00:02]}  Qd7 {[%clk 0:00:52]} 31. Qxd7 {[%clk 0:00:02]}  Rxd7 {[%clk 0:00:51]} 32. Nxb6 {[%clk 0:00:02]}  cxb6 {[%clk 0:00:52]} 33. g3 {[%clk 0:00:02]}  d2 {[%clk 0:00:42]} 0-1


[Site "https://www.chess.com"]

[Event "Titled Tuesday Blitz November 22 Early 2022"]
[White "Williams, Simon K"]
[Black "Osinovsky, Stepan"]
[WhiteFideId "404454"]
[BlackFideId "4157354"]
[WhiteElo "2468"]
[BlackElo "2222"]
[Result "0-1"]
[Round "05"]
[TimeControl "180+1"]
[Date "2022.11.23"]
[WhiteClock "0:00:05"]
[BlackClock "0:00:05"]

1. d4 {[%clk 0:03:00]}  Nf6 {[%clk 0:02:58]} 2. c4 {[%clk 0:02:58]}  g6 {[%clk 0:02:59]} 3. h4 {[%clk 0:02:55]}  Bg7 {[%clk 0:03:00]} 4. Nc3 {[%clk 0:02:54]}  h5 {[%clk 0:02:55]} 5. e4 {[%clk 0:02:53]}  d6 {[%clk 0:02:45]} 6. Be2 {[%clk 0:02:52]}  Nbd7 {[%clk 0:02:33]} 7. Nf3 {[%clk 0:02:51]}  c5 {[%clk 0:02:33]} 8. O-O {[%clk 0:02:46]}  Ng4 {[%clk 0:02:24]} 9. Bg5 {[%clk 0:02:36]}  a6 {[%clk 0:02:04]} 10. a4 {[%clk 0:02:36]}  Qa5 {[%clk 0:01:35]} 11. dxc5 {[%clk 0:01:50]}  Bxc3 {[%clk 0:01:16]} 12. bxc3 {[%clk 0:01:49]}  Nxc5 {[%clk 0:01:14]} 13. Qd4 {[%clk 0:01:32]}  f6 {[%clk 0:01:10]} 14. Rab1 {[%clk 0:01:20]}  Kf7 {[%clk 0:01:09]} 15. Bc1 {[%clk 0:01:07]}  Qxa4 {[%clk 0:01:07]} 16. Nd2 {[%clk 0:01:01]}  Bd7 {[%clk 0:00:45]} 17. f3 {[%clk 0:00:55]}  Ne6 {[%clk 0:00:43]} 18. Qd3 {[%clk 0:00:52]}  Nf4 {[%clk 0:00:43]} 19. fxg4 {[%clk 0:00:40]}  Nxd3 {[%clk 0:00:42]} 20. Bxd3 {[%clk 0:00:41]}  hxg4 {[%clk 0:00:42]} 21. g3 {[%clk 0:00:39]}  Qc6 {[%clk 0:00:24]} 22. Nb3 {[%clk 0:00:37]}  b5 {[%clk 0:00:19]} 23. Kg2 {[%clk 0:00:33]}  bxc4 {[%clk 0:00:18]} 24. Nd4 {[%clk 0:00:33]}  Qc5 {[%clk 0:00:17]} 25. Bc2 {[%clk 0:00:32]}  Rab8 {[%clk 0:00:16]} 26. Be3 {[%clk 0:00:32]}  Rxb1 {[%clk 0:00:15]} 27. Rxb1 {[%clk 0:00:33]}  Qc7 {[%clk 0:00:16]} 28. Ra1 {[%clk 0:00:29]}  Ra8 {[%clk 0:00:13]} 29. Rh1 {[%clk 0:00:26]}  a5 {[%clk 0:00:13]} 30. h5 {[%clk 0:00:26]}  g5 {[%clk 0:00:13]} 31. h6 {[%clk 0:00:27]}  Rh8 {[%clk 0:00:13]} 32. h7 {[%clk 0:00:24]}  Kg7 {[%clk 0:00:11]} 33. Ba4 {[%clk 0:00:12]}  Rxh7 {[%clk 0:00:09]} 34. Rb1 {[%clk 0:00:11]}  Rh8 {[%clk 0:00:06]} 35. Bxd7 {[%clk 0:00:10]}  Qxd7 {[%clk 0:00:07]} 36. Rb6 {[%clk 0:00:08]}  a4 {[%clk 0:00:05]} 37. Ra6 {[%clk 0:00:07]}  Rb8 {[%clk 0:00:06]} 38. Nf5+ {[%clk 0:00:04]}  Kg6 {[%clk 0:00:05]} 39. Bd4 {[%clk 0:00:05]}  Rb2+ {[%clk 0:00:05]} 40. Kf1 {[%clk 0:00:05]}  Qb7 {[%clk 0:00:05]} 0-1


[Site "https://www.chess.com"]

[Event "Titled Tuesday Blitz November 22 Early 2022"]
[White "Zacurdajev, Dmitry"]
[Black "Papp, Levente"]
[WhiteFideId "4196309"]
[BlackFideId "751243"]
[WhiteElo "2179"]
[BlackElo "2380"]
[Result "1-0"]
[Round "05"]
[TimeControl "180+1"]
[Date "2022.11.23"]
[WhiteClock "0:00:08"]
[BlackClock "0:00:01"]

1. d4 {[%clk 0:03:00]}  e6 {[%clk 0:02:59]} 2. c4 {[%clk 0:03:01]}  d5 {[%clk 0:02:58]} 3. Nc3 {[%clk 0:03:01]}  Bb4 {[%clk 0:02:58]} 4. Qc2 {[%clk 0:03:00]}  Nf6 {[%clk 0:02:56]} 5. e3 {[%clk 0:02:59]}  O-O {[%clk 0:02:55]} 6. a3 {[%clk 0:02:59]}  Bxc3+ {[%clk 0:02:54]} 7. Qxc3 {[%clk 0:03:00]}  b6 {[%clk 0:02:53]} 8. Nf3 {[%clk 0:02:55]}  Ba6 {[%clk 0:02:53]} 9. b3 {[%clk 0:02:53]}  c5 {[%clk 0:02:44]} 10. Bb2 {[%clk 0:02:36]}  Nc6 {[%clk 0:02:38]} 11. dxc5 {[%clk 0:02:35]}  bxc5 {[%clk 0:02:31]} 12. cxd5 {[%clk 0:02:33]}  Bxf1 {[%clk 0:02:30]} 13. Kxf1 {[%clk 0:02:25]}  Qxd5 {[%clk 0:02:21]} 14. Rc1 {[%clk 0:02:07]}  Rfc8 {[%clk 0:01:40]} 15. Ke2 {[%clk 0:01:26]}  Rab8 {[%clk 0:01:30]} 16. Rhd1 {[%clk 0:01:21]}  Qe4 {[%clk 0:00:42]} 17. g4 {[%clk 0:01:05]}  Ne7 {[%clk 0:00:21]} 18. g5 {[%clk 0:01:02]}  Nh5 {[%clk 0:00:20]} 19. b4 {[%clk 0:00:37]}  Nf4+ {[%clk 0:00:18]} 20. Kf1 {[%clk 0:00:37]}  Nh5 {[%clk 0:00:12]} 21. Ne1 {[%clk 0:00:13]}  Nd5 {[%clk 0:00:10]} 22. Qe5 {[%clk 0:00:13]}  Qh1+ {[%clk 0:00:08]} 23. Ke2 {[%clk 0:00:13]}  cxb4 {[%clk 0:00:07]} 24. Rxc8+ {[%clk 0:00:13]}  Rxc8 {[%clk 0:00:08]} 25. axb4 {[%clk 0:00:13]}  Ne7 {[%clk 0:00:02]} 26. Qc7 {[%clk 0:00:10]}  Rf8 {[%clk 0:00:01]} 27. Qxe7 {[%clk 0:00:09]}  Qc6 {[%clk 0:00:01]} 28. Rd8 {[%clk 0:00:09]}  Qb5+ {[%clk 0:00:01]} 29. Nd3 {[%clk 0:00:08]} 1-0


[Site "https://www.chess.com"]

[Event "Titled Tuesday Blitz November 22 Early 2022"]
[White "Zainullina, Nataliya"]
[Black "Rosh Jain"]
[WhiteFideId "4145488"]
[BlackFideId "25789465"]
[WhiteElo "2100"]
[BlackElo "2233"]
[Result "1-0"]
[Round "05"]
[TimeControl "180+1"]
[Date "2022.11.23"]
[WhiteClock "0:01:39"]
[BlackClock "0:01:32"]

1. Nf3 {[%clk 0:02:58]}  d5 {[%clk 0:02:57]} 2. d4 {[%clk 0:02:58]}  Nc6 {[%clk 0:02:56]} 3. g3 {[%clk 0:02:56]}  Bg4 {[%clk 0:02:55]} 4. Bg2 {[%clk 0:02:56]}  Qd7 {[%clk 0:02:54]} 5. Ne5 {[%clk 0:02:47]}  Nxe5 {[%clk 0:02:52]} 6. dxe5 {[%clk 0:02:48]}  e6 {[%clk 0:02:52]} 7. O-O {[%clk 0:02:45]}  Ne7 {[%clk 0:02:51]} 8. Bf4 {[%clk 0:02:38]}  Ng6 {[%clk 0:02:48]} 9. c4 {[%clk 0:02:36]}  Nxf4 {[%clk 0:02:48]} 10. gxf4 {[%clk 0:02:36]}  c6 {[%clk 0:02:47]} 11. cxd5 {[%clk 0:02:35]}  cxd5 {[%clk 0:02:48]} 12. Qd3 {[%clk 0:02:34]}  Bf5 {[%clk 0:02:48]} 13. e4 {[%clk 0:02:31]}  dxe4 {[%clk 0:02:45]} 14. Qxd7+ {[%clk 0:02:31]}  Kxd7 {[%clk 0:02:45]} 15. Nc3 {[%clk 0:02:27]}  Bc5 {[%clk 0:02:41]} 16. Nxe4 {[%clk 0:02:23]}  Bxe4 {[%clk 0:02:39]} 17. Bxe4 {[%clk 0:02:23]}  Rab8 {[%clk 0:02:39]} 18. Rfd1+ {[%clk 0:02:22]}  Ke7 {[%clk 0:02:38]} 19. Rac1 {[%clk 0:02:22]}  Bb6 {[%clk 0:02:38]} 20. Kg2 {[%clk 0:02:16]}  g6 {[%clk 0:02:37]} 21. Rd2 {[%clk 0:02:08]}  Rhd8 {[%clk 0:02:32]} 22. Rcd1 {[%clk 0:02:09]}  Rxd2 {[%clk 0:02:26]} 23. Rxd2 {[%clk 0:02:09]}  Bc5 {[%clk 0:02:27]} 24. Rc2 {[%clk 0:02:06]}  b6 {[%clk 0:02:26]} 25. b4 {[%clk 0:02:06]}  Bxb4 {[%clk 0:02:25]} 26. Rc7+ {[%clk 0:02:07]}  Kf8 {[%clk 0:02:24]} 27. Rxa7 {[%clk 0:02:07]}  Bc5 {[%clk 0:02:24]} 28. Bc6 {[%clk 0:02:02]}  Rd8 {[%clk 0:02:23]} 29. Rd7 {[%clk 0:02:01]}  Rxd7 {[%clk 0:02:11]} 30. Bxd7 {[%clk 0:02:01]}  Ke7 {[%clk 0:02:10]} 31. Bb5 {[%clk 0:02:01]}  Bb4 {[%clk 0:02:10]} 32. a4 {[%clk 0:02:00]}  Bd2 {[%clk 0:02:09]} 33. Kf3 {[%clk 0:02:00]}  h6 {[%clk 0:02:08]} 34. h3 {[%clk 0:01:58]}  Be1 {[%clk 0:02:05]} 35. Bc6 {[%clk 0:01:57]}  Bc3 {[%clk 0:01:56]} 36. Bb5 {[%clk 0:01:55]}  Bd4 {[%clk 0:01:56]} 37. Ke4 {[%clk 0:01:56]}  Bxf2 {[%clk 0:01:56]} 38. Kf3 {[%clk 0:01:56]}  Bg1 {[%clk 0:01:54]} 39. Kg4 {[%clk 0:01:56]}  Bh2 {[%clk 0:01:43]} 40. Bc6 {[%clk 0:01:52]}  g5 {[%clk 0:01:39]} 41. fxg5 {[%clk 0:01:52]}  hxg5 {[%clk 0:01:40]} 42. Kxg5 {[%clk 0:01:52]}  Bxe5 {[%clk 0:01:38]} 43. h4 {[%clk 0:01:53]}  f6+ {[%clk 0:01:37]} 44. Kg6 {[%clk 0:01:52]}  f5 {[%clk 0:01:35]} 45. h5 {[%clk 0:01:52]}  Ba1 {[%clk 0:01:33]} 46. h6 {[%clk 0:01:51]}  Kd6 {[%clk 0:01:33]} 47. Bf3 {[%clk 0:01:48]}  Ke5 {[%clk 0:01:33]} 48. h7 {[%clk 0:01:43]}  Kf4 {[%clk 0:01:33]} 49. Bd1 {[%clk 0:01:42]}  e5 {[%clk 0:01:32]} 50. h8=Q {[%clk 0:01:41]}  e4 {[%clk 0:01:30]} 51. Qxa1 {[%clk 0:01:39]}  Kg3 {[%clk 0:01:31]} 52. Kxf5 {[%clk 0:01:38]}  Kh2 {[%clk 0:01:32]} 53. Qg7 {[%clk 0:01:38]}  Kh1 {[%clk 0:01:32]} 54. Kf4 {[%clk 0:01:38]}  e3 {[%clk 0:01:32]} 55. Kf3 {[%clk 0:01:38]}  Kh2 {[%clk 0:01:32]} 56. Qg2# {[%clk 0:01:39]} 1-0


[Site "https://www.chess.com"]

[Event "Titled Tuesday Blitz November 22 Early 2022"]
[White "Zierk, Steven"]
[Black "Seo, Jung Min"]
[WhiteFideId "2034255"]
[BlackFideId "1734687"]
[WhiteElo "2494"]
[BlackElo "2455"]
[Result "0-1"]
[Round "05"]
[TimeControl "180+1"]
[Date "2022.11.22"]
[WhiteClock "0:01:54"]
[BlackClock "0:02:24"]

1. e4 {[%clk 0:03:00]}  e5 {[%clk 0:03:00]} 2. Nf3 {[%clk 0:03:00]}  Nf6 {[%clk 0:03:00]} 3. d4 {[%clk 0:03:00]}  Nxe4 {[%clk 0:02:57]} 4. dxe5 {[%clk 0:02:59]}  d5 {[%clk 0:02:57]} 5. Nbd2 {[%clk 0:02:58]}  Qd7 {[%clk 0:02:55]} 6. Bd3 {[%clk 0:02:49]}  Nc5 {[%clk 0:02:55]} 7. Be2 {[%clk 0:02:49]}  g6 {[%clk 0:02:51]} 8. Nb3 {[%clk 0:02:43]}  Ne6 {[%clk 0:02:49]} 9. h4 {[%clk 0:02:37]}  c5 {[%clk 0:02:43]} 10. h5 {[%clk 0:02:34]}  Bg7 {[%clk 0:02:38]} 11. Ng5 {[%clk 0:02:16]}  b6 {[%clk 0:02:28]} 12. Bg4 {[%clk 0:01:54]}  Qc6 {[%clk 0:02:24]} 0-1


[Site "https://www.chess.com"]

[Event "Titled Tuesday Blitz November 22 Early 2022"]
[White "Ai, Evan"]
[Black "Gheorghiu, Calin"]
[WhiteFideId "2094770"]
[BlackFideId "1200305"]
[WhiteElo "1963"]
[BlackElo "2225"]
[Result "0-1"]
[Round "06"]
[TimeControl "180+1"]
[Date "2022.11.23"]
[WhiteClock "0:02:04"]
[BlackClock "0:01:23"]

1. e4 {[%clk 0:03:00]}  c5 {[%clk 0:02:58]} 2. Nf3 {[%clk 0:02:57]}  d6 {[%clk 0:02:58]} 3. d4 {[%clk 0:02:57]}  cxd4 {[%clk 0:02:58]} 4. Nxd4 {[%clk 0:02:57]}  Nf6 {[%clk 0:02:59]} 5. Nc3 {[%clk 0:02:55]}  a6 {[%clk 0:02:59]} 6. h3 {[%clk 0:02:54]}  e5 {[%clk 0:02:57]} 7. Nf3 {[%clk 0:02:53]}  Be7 {[%clk 0:02:57]} 8. g4 {[%clk 0:02:53]}  h6 {[%clk 0:02:55]} 9. Rg1 {[%clk 0:02:52]}  g5 {[%clk 0:02:51]} 10. a4 {[%clk 0:02:49]}  Be6 {[%clk 0:02:46]} 11. Be3 {[%clk 0:02:46]}  Nbd7 {[%clk 0:02:30]} 12. a5 {[%clk 0:02:27]}  Rc8 {[%clk 0:02:30]} 13. Ra4 {[%clk 0:02:23]}  Nc5 {[%clk 0:02:25]} 14. Bxc5 {[%clk 0:02:20]}  Rxc5 {[%clk 0:02:21]} 15. Rb4 {[%clk 0:02:17]}  Qc7 {[%clk 0:01:55]} 16. Bd3 {[%clk 0:02:10]}  d5 {[%clk 0:01:36]} 17. exd5 {[%clk 0:02:04]}  Nxd5 {[%clk 0:01:35]} 18. Nxd5 {[%clk 0:02:04]}  Bxd5 {[%clk 0:01:34]} 19. Qe2 {[%clk 0:02:04]}  Rxa5 {[%clk 0:01:23]} 0-1


[Site "https://www.chess.com"]

[Event "Titled Tuesday Blitz November 22 Early 2022"]
[White "Ansh M Shah"]
[Black "Barria Zuniga, Daniel"]
[WhiteFideId "25033379"]
[BlackFideId "3400816"]
[WhiteElo "2084"]
[BlackElo "2414"]
[Result "0-1"]
[Round "06"]
[TimeControl "180+1"]
[Date "2022.11.23"]
[WhiteClock "0:00:03"]
[BlackClock "0:00:19"]

1. d4 {[%clk 0:02:58]}  Nf6 {[%clk 0:02:32]} 2. c4 {[%clk 0:02:58]}  e6 {[%clk 0:02:31]} 3. g3 {[%clk 0:02:58]}  d5 {[%clk 0:02:29]} 4. Bg2 {[%clk 0:02:56]}  Be7 {[%clk 0:02:27]} 5. Nf3 {[%clk 0:02:55]}  O-O {[%clk 0:02:28]} 6. O-O {[%clk 0:02:56]}  dxc4 {[%clk 0:02:27]} 7. Qc2 {[%clk 0:02:56]}  a6 {[%clk 0:02:27]} 8. a4 {[%clk 0:02:57]}  c5 {[%clk 0:02:27]} 9. Qxc4 {[%clk 0:02:56]}  b5 {[%clk 0:02:15]} 10. Qc2 {[%clk 0:02:44]}  Bb7 {[%clk 0:02:14]} 11. dxc5 {[%clk 0:02:44]}  Be4 {[%clk 0:02:14]} 12. Qb3 {[%clk 0:02:41]}  Nbd7 {[%clk 0:02:11]} 13. axb5 {[%clk 0:02:40]}  Nxc5 {[%clk 0:02:10]} 14. Qc4 {[%clk 0:02:21]}  Bd5 {[%clk 0:02:06]} 15. Qc2 {[%clk 0:02:21]}  axb5 {[%clk 0:02:05]} 16. Rxa8 {[%clk 0:02:19]}  Qxa8 {[%clk 0:02:04]} 17. Nc3 {[%clk 0:02:20]}  Bc6 {[%clk 0:01:48]} 18. Rd1 {[%clk 0:02:13]}  b4 {[%clk 0:01:46]} 19. Nb1 {[%clk 0:02:07]}  Ba4 {[%clk 0:01:40]} 20. Qd2 {[%clk 0:01:32]}  Rd8 {[%clk 0:01:13]} 21. Nd4 {[%clk 0:01:28]}  Qa7 {[%clk 0:01:08]} 22. Qxb4 {[%clk 0:00:30]}  Bxd1 {[%clk 0:01:03]} 23. Nc6 {[%clk 0:00:28]}  Qa1 {[%clk 0:00:30]} 24. Nxe7+ {[%clk 0:00:26]}  Kh8 {[%clk 0:00:29]} 25. Qxc5 {[%clk 0:00:17]}  Qxb1 {[%clk 0:00:28]} 26. Bf3 {[%clk 0:00:15]}  Bc2 {[%clk 0:00:27]} 27. Qe3 {[%clk 0:00:07]}  Rd1+ {[%clk 0:00:25]} 28. Kg2 {[%clk 0:00:08]}  Qxc1 {[%clk 0:00:25]} 29. Qc3 {[%clk 0:00:06]}  h6 {[%clk 0:00:24]} 30. Qc8+ {[%clk 0:00:04]}  Kh7 {[%clk 0:00:24]} 31. Qf8 {[%clk 0:00:03]}  Bf5 {[%clk 0:00:19]} 0-1


[Site "https://www.chess.com"]

[Event "Titled Tuesday Blitz November 22 Early 2022"]
[White "Balabayeva, Xeniya"]
[Black "Paravyan, David"]
[WhiteFideId "13719688"]
[BlackFideId "4194985"]
[WhiteElo "2041"]
[BlackElo "2546"]
[Result "0-1"]
[Round "06"]
[TimeControl "180+1"]
[Date "2022.11.22"]
[WhiteClock "0:00:00"]
[BlackClock "0:00:05"]

1. e4 {[%clk 0:03:00]}  e5 {[%clk 0:02:57]} 2. Nf3 {[%clk 0:02:59]}  Nf6 {[%clk 0:02:57]} 3. Nxe5 {[%clk 0:02:55]}  d6 {[%clk 0:02:55]} 4. Nf3 {[%clk 0:02:54]}  Nxe4 {[%clk 0:02:55]} 5. Nc3 {[%clk 0:02:54]}  Nxc3 {[%clk 0:02:53]} 6. dxc3 {[%clk 0:02:55]}  Be7 {[%clk 0:02:53]} 7. Bf4 {[%clk 0:02:46]}  O-O {[%clk 0:02:52]} 8. Be2 {[%clk 0:02:43]}  Nd7 {[%clk 0:02:44]} 9. O-O {[%clk 0:02:41]}  Re8 {[%clk 0:02:45]} 10. Re1 {[%clk 0:02:27]}  Bf6 {[%clk 0:02:44]} 11. Nd4 {[%clk 0:02:15]}  Nc5 {[%clk 0:02:41]} 12. Bf3 {[%clk 0:02:12]}  Rxe1+ {[%clk 0:02:26]} 13. Qxe1 {[%clk 0:02:11]}  Rb8 {[%clk 0:02:27]} 14. Rd1 {[%clk 0:02:08]}  Ne6 {[%clk 0:02:27]} 15. Be3 {[%clk 0:01:56]}  Nxd4 {[%clk 0:02:25]} 16. Bxd4 {[%clk 0:01:56]}  Bxd4 {[%clk 0:02:24]} 17. Rxd4 {[%clk 0:01:57]}  Be6 {[%clk 0:02:23]} 18. a4 {[%clk 0:01:52]}  a5 {[%clk 0:02:22]} 19. Qd2 {[%clk 0:01:49]}  b6 {[%clk 0:02:21]} 20. h3 {[%clk 0:01:47]}  Qf8 {[%clk 0:02:17]} 21. Bc6 {[%clk 0:01:20]}  Rd8 {[%clk 0:02:16]} 22. c4 {[%clk 0:01:07]}  h6 {[%clk 0:02:16]} 23. b3 {[%clk 0:01:06]}  Qe7 {[%clk 0:02:14]} 24. Qe3 {[%clk 0:01:03]}  Qg5 {[%clk 0:02:12]} 25. Qxg5 {[%clk 0:01:00]}  hxg5 {[%clk 0:02:13]} 26. f3 {[%clk 0:00:59]}  g6 {[%clk 0:02:12]} 27. Kf2 {[%clk 0:00:59]}  Kg7 {[%clk 0:02:13]} 28. c3 {[%clk 0:00:56]}  Rh8 {[%clk 0:02:13]} 29. b4 {[%clk 0:00:54]}  f5 {[%clk 0:02:06]} 30. Bd5 {[%clk 0:00:52]}  Bd7 {[%clk 0:02:04]} 31. Bb7 {[%clk 0:00:14]}  Rb8 {[%clk 0:01:37]} 32. Ba6 {[%clk 0:00:14]}  axb4 {[%clk 0:01:37]} 33. cxb4 {[%clk 0:00:13]}  Ra8 {[%clk 0:01:38]} 34. Bb5 {[%clk 0:00:12]}  Bxb5 {[%clk 0:01:38]} 35. axb5 {[%clk 0:00:13]}  Ra4 {[%clk 0:01:38]} 36. Ke3 {[%clk 0:00:07]}  Rxb4 {[%clk 0:01:38]} 37. c5 {[%clk 0:00:06]}  Rxd4 {[%clk 0:01:37]} 38. cxb6 {[%clk 0:00:06]}  Rh4 {[%clk 0:00:05]} 39. bxc7 {[%clk 0:00:00]}  Rc4 {[%clk 0:00:05]} 0-1


[Site "https://www.chess.com"]

[Event "Titled Tuesday Blitz November 22 Early 2022"]
[White "Bluebaum, Matthias"]
[Black "Donchenko, Alexander"]
[WhiteFideId "24651516"]
[BlackFideId "24603295"]
[WhiteElo "2633"]
[BlackElo "2572"]
[Result "1-0"]
[Round "06"]
[TimeControl "180+1"]
[Date "2022.11.22"]
[WhiteClock "0:00:44"]
[BlackClock "0:00:15"]

1. d4 {[%clk 0:03:00]}  d5 {[%clk 0:02:58]} 2. c4 {[%clk 0:03:01]}  e6 {[%clk 0:02:58]} 3. Nc3 {[%clk 0:03:01]}  Bb4 {[%clk 0:02:58]} 4. a3 {[%clk 0:03:01]}  Bxc3+ {[%clk 0:02:59]} 5. bxc3 {[%clk 0:03:01]}  Ne7 {[%clk 0:02:57]} 6. e3 {[%clk 0:03:01]}  O-O {[%clk 0:02:56]} 7. Bd3 {[%clk 0:02:53]}  b6 {[%clk 0:02:55]} 8. cxd5 {[%clk 0:02:53]}  exd5 {[%clk 0:02:54]} 9. Ne2 {[%clk 0:02:54]}  Bf5 {[%clk 0:02:54]} 10. O-O {[%clk 0:02:49]}  c5 {[%clk 0:02:53]} 11. f3 {[%clk 0:02:47]}  Bxd3 {[%clk 0:02:50]} 12. Qxd3 {[%clk 0:02:48]}  Nd7 {[%clk 0:02:51]} 13. e4 {[%clk 0:02:44]}  cxd4 {[%clk 0:02:51]} 14. cxd4 {[%clk 0:02:44]}  dxe4 {[%clk 0:02:51]} 15. fxe4 {[%clk 0:02:45]}  Rc8 {[%clk 0:02:46]} 16. a4 {[%clk 0:02:41]}  Ng6 {[%clk 0:02:40]} 17. Ba3 {[%clk 0:02:36]}  Re8 {[%clk 0:02:37]} 18. Rad1 {[%clk 0:02:09]}  Nf6 {[%clk 0:02:33]} 19. Ng3 {[%clk 0:02:04]}  Qd7 {[%clk 0:02:29]} 20. Rxf6 {[%clk 0:01:54]}  gxf6 {[%clk 0:02:30]} 21. Nh5 {[%clk 0:01:54]}  Qxa4 {[%clk 0:02:12]} 22. Nxf6+ {[%clk 0:01:53]}  Kg7 {[%clk 0:02:13]} 23. Nxe8+ {[%clk 0:01:53]}  Rxe8 {[%clk 0:02:13]} 24. Bb2 {[%clk 0:01:52]}  Kg8 {[%clk 0:02:09]} 25. d5 {[%clk 0:01:37]}  Rxe4 {[%clk 0:01:57]} 26. d6 {[%clk 0:01:27]}  Nf8 {[%clk 0:01:36]} 27. d7 {[%clk 0:00:52]}  Nxd7 {[%clk 0:01:33]} 28. Qxd7 {[%clk 0:00:44]}  Re1+ {[%clk 0:00:14]} 29. Kf2 {[%clk 0:00:44]}  Qh4+ {[%clk 0:00:15]} 30. g3 {[%clk 0:00:44]} 1-0


[Site "https://www.chess.com"]

[Event "Titled Tuesday Blitz November 22 Early 2022"]
[White "Bon, Michael"]
[Black "Pajeken, Jakob Leon"]
[WhiteFideId "620696"]
[BlackFideId "12942839"]
[WhiteElo "2354"]
[BlackElo "2429"]
[Result "0-1"]
[Round "06"]
[TimeControl "180+1"]
[Date "2022.11.23"]
[WhiteClock "0:00:07"]
[BlackClock "0:01:13"]

1. e4 {[%clk 0:03:00]}  e5 {[%clk 0:02:59]} 2. Nf3 {[%clk 0:03:00]}  Nc6 {[%clk 0:03:00]} 3. Bc4 {[%clk 0:03:00]}  Bc5 {[%clk 0:02:59]} 4. c3 {[%clk 0:02:59]}  Nf6 {[%clk 0:03:00]} 5. d3 {[%clk 0:02:59]}  a6 {[%clk 0:03:00]} 6. Bb3 {[%clk 0:02:48]}  O-O {[%clk 0:02:59]} 7. O-O {[%clk 0:02:44]}  d6 {[%clk 0:02:55]} 8. Nbd2 {[%clk 0:02:42]}  Ba7 {[%clk 0:02:55]} 9. Re1 {[%clk 0:02:40]}  Ng4 {[%clk 0:02:55]} 10. Re2 {[%clk 0:02:40]}  Kh8 {[%clk 0:02:55]} 11. Nf1 {[%clk 0:02:07]}  f5 {[%clk 0:02:55]} 12. exf5 {[%clk 0:02:07]}  Bxf5 {[%clk 0:02:54]} 13. Ng3 {[%clk 0:02:07]}  Bg6 {[%clk 0:02:49]} 14. h3 {[%clk 0:02:02]}  Nf6 {[%clk 0:02:27]} 15. d4 {[%clk 0:01:45]}  exd4 {[%clk 0:02:17]} 16. cxd4 {[%clk 0:01:46]}  d5 {[%clk 0:02:16]} 17. Bg5 {[%clk 0:01:34]}  h6 {[%clk 0:02:16]} 18. Bh4 {[%clk 0:01:16]}  Be4 {[%clk 0:02:07]} 19. Nxe4 {[%clk 0:01:05]}  dxe4 {[%clk 0:02:07]} 20. Ne5 {[%clk 0:01:00]}  Nxd4 {[%clk 0:02:05]} 21. Ng6+ {[%clk 0:00:55]}  Kh7 {[%clk 0:02:04]} 22. Nxf8+ {[%clk 0:00:51]}  Qxf8 {[%clk 0:02:05]} 23. Re3 {[%clk 0:00:40]}  Nf5 {[%clk 0:02:02]} 24. Bxf6 {[%clk 0:00:19]}  Nxe3 {[%clk 0:01:58]} 25. Qe2 {[%clk 0:00:15]}  Qxf6 {[%clk 0:01:54]} 26. fxe3 {[%clk 0:00:15]}  Rf8 {[%clk 0:01:51]} 27. Bd5 {[%clk 0:00:12]}  Qg5 {[%clk 0:01:42]} 28. Bxe4+ {[%clk 0:00:11]}  Kh8 {[%clk 0:01:42]} 29. Bxb7 {[%clk 0:00:11]}  Bxe3+ {[%clk 0:01:41]} 30. Kh1 {[%clk 0:00:11]}  Qg3 {[%clk 0:01:39]} 31. Qg4 {[%clk 0:00:10]}  Qd6 {[%clk 0:01:32]} 32. Be4 {[%clk 0:00:10]}  Bg5 {[%clk 0:01:27]} 33. Rd1 {[%clk 0:00:10]}  Qe5 {[%clk 0:01:19]} 34. b3 {[%clk 0:00:06]}  Re8 {[%clk 0:01:17]} 35. Bf3 {[%clk 0:00:06]}  Bf4 {[%clk 0:01:15]} 36. Qh5 {[%clk 0:00:07]}  Qe1+ {[%clk 0:01:13]} 0-1


[Site "https://www.chess.com"]